[Event "*** Titled Tuesday Blitz"]
[Site "Chess.com"]
[Date "2018.08.07"]
[Round "1"]
[White "JSMastropiero"]
[Black "Margency"]
[Result "0-1"]
[WhiteElo "2311"]
[BlackElo "2706"]
[TimeControl "180+2"]
[EndTime "13:09:57 PDT"]
[Termination "Margency won by checkmate"]

1. d4 {[%clk 0:02:59.1]} 1... Nf6 {[%clk 0:03:00.5]} 2. c4 {[%clk 0:02:59.3]}
2... g6 {[%clk 0:03:01.5]} 3. f3 {[%clk 0:02:58.8]} 3... Bg7 {[%clk 0:03:01.2]}
4. e4 {[%clk 0:02:59.4]} 4... d6 {[%clk 0:03:02.2]} 5. Nc3 {[%clk 0:03:00.2]}
5... a6 {[%clk 0:03:02.6]} 6. Be3 {[%clk 0:02:55.3]} 6... c6 {[%clk 0:03:03.5]}
7. c5 {[%clk 0:02:54.2]} 7... b5 {[%clk 0:03:00.9]} 8. cxd6 {[%clk 0:02:50.8]}
8... exd6 {[%clk 0:03:01.3]} 9. Nge2 {[%clk 0:02:51.4]} 9... O-O {[%clk
0:03:01.6]} 10. Nf4 {[%clk 0:02:51.5]} 10... Nbd7 {[%clk 0:02:57.5]} 11. Be2
{[%clk 0:02:49.6]} 11... Bb7 {[%clk 0:02:57.7]} 12. O-O {[%clk 0:02:47.1]} 12...
Re8 {[%clk 0:02:58.1]} 13. Qd2 {[%clk 0:02:47.3]} 13... Nb6 {[%clk 0:02:53.8]}
14. b3 {[%clk 0:02:37.8]} 14... b4 {[%clk 0:02:53.4]} 15. Nd1 {[%clk 0:02:36.1]}
15... a5 {[%clk 0:02:53.8]} 16. Nf2 {[%clk 0:02:29.5]} 16... Qe7 {[%clk
0:02:35.1]} 17. Rac1 {[%clk 0:02:20.5]} 17... Rac8 {[%clk 0:02:15.3]} 18. d5
{[%clk 0:02:01.9]} 18... Nbxd5 {[%clk 0:02:12.4]} 19. Nxd5 {[%clk 0:01:51.8]}
19... cxd5 {[%clk 0:02:07.5]} 20. Bb5 {[%clk 0:01:41.6]} 20... Rf8 {[%clk
0:01:57.8]} 21. Bg5 {[%clk 0:01:19.2]} 21... dxe4 {[%clk 0:01:52.3]} 22. Nxe4
{[%clk 0:01:14.9]} 22... Bxe4 {[%clk 0:01:48.9]} 23. fxe4 {[%clk 0:01:14.2]}
23... Qe5 {[%clk 0:01:37.1]} 24. Bxf6 {[%clk 0:01:09.1]} 24... Bxf6 {[%clk
0:01:35.4]} 25. Rxc8 {[%clk 0:01:09.7]} 25... Rxc8 {[%clk 0:01:35.7]} 26. Qf2
{[%clk 0:01:01.4]} 26... Qd4 {[%clk 0:01:26.5]} 27. Bc4 {[%clk 0:00:57.1]} 27...
Qxf2+ {[%clk 0:01:24.9]} 28. Kxf2 {[%clk 0:00:59]} 28... Kg7 {[%clk 0:01:23.1]}
29. Ke2 {[%clk 0:00:57.3]} 29... Rc5 {[%clk 0:01:11.7]} 30. Kd3 {[%clk 0:00:51]}
30... Rg5 {[%clk 0:01:08.9]} 31. g3 {[%clk 0:00:49.9]} 31... h5 {[%clk
0:01:09.1]} 32. Bd5 {[%clk 0:00:45.1]} 32... h4 {[%clk 0:01:05.9]} 33. Rf3
{[%clk 0:00:33.4]} 33... hxg3 {[%clk 0:01:05.4]} 34. Rxg3 {[%clk 0:00:32.5]}
34... Rh5 {[%clk 0:01:02.8]} 35. h3 {[%clk 0:00:31.5]} 35... Be5 {[%clk
0:01:03.6]} 36. Rf3 {[%clk 0:00:32.7]} 36... f5 {[%clk 0:00:56.3]} 37. exf5
{[%clk 0:00:30.3]} 37... gxf5 {[%clk 0:00:57.3]} 38. Kc4 {[%clk 0:00:29.8]}
38... Kg6 {[%clk 0:00:47.3]} 39. Kb5 {[%clk 0:00:28.2]} 39... Rh7 {[%clk
0:00:38.9]} 40. Kxa5 {[%clk 0:00:25.4]} 40... Ra7+ {[%clk 0:00:39.2]} 41. Kxb4
{[%clk 0:00:26.4]} 41... Rxa2 {[%clk 0:00:40.4]} 42. Be6 {[%clk 0:00:21.2]}
42... f4 {[%clk 0:00:38.9]} 43. Kc4 {[%clk 0:00:21.6]} 43... Rc2+ {[%clk
0:00:37.4]} 44. Kb4 {[%clk 0:00:18.1]} 44... Kf6 {[%clk 0:00:37.3]} 45. Bc4
{[%clk 0:00:18.4]} 45... Rd2 {[%clk 0:00:36.8]} 46. Rd3 {[%clk 0:00:17.4]} 46...
Rh2 {[%clk 0:00:35]} 47. Bd5 {[%clk 0:00:17.2]} 47... Rc2 {[%clk 0:00:30.4]} 48.
Bc4 {[%clk 0:00:15]} 48... Ke7 {[%clk 0:00:30.9]} 49. Kb5 {[%clk 0:00:14.6]}
49... Kd7 {[%clk 0:00:31.4]} 50. b4 {[%clk 0:00:13.7]} 50... Kc7 {[%clk
0:00:32.6]} 51. Bb3 {[%clk 0:00:12.6]} 51... Rb2 {[%clk 0:00:32.7]} 52. Bd5
{[%clk 0:00:12.1]} 52... Rb1 {[%clk 0:00:22.2]} 53. Rd2 {[%clk 0:00:10.3]} 53...
Bc3 {[%clk 0:00:21.5]} 54. Rc2 {[%clk 0:00:11.4]} 54... Rxb4+ {[%clk 0:00:20.8]}
55. Ka6 {[%clk 0:00:10.2]} 55... Rb6+ {[%clk 0:00:20]} 56. Ka7 {[%clk
0:00:10.2]} 56... Rb5 {[%clk 0:00:15.6]} 57. Rxc3+ {[%clk 0:00:11.1]} 57... Rc5
{[%clk 0:00:16.4]} 58. Rd3 {[%clk 0:00:09.6]} 58... Ra5# {[%clk 0:00:17.3]} 0-1

[Event "*** Titled Tuesday Blitz"]
[Site "Chess.com"]
[Date "2018.08.07"]
[Round "1"]
[White "MarshKnight"]
[Black "nonscitis"]
[Result "1-0"]
[WhiteElo "2109"]
[BlackElo "2449"]
[TimeControl "180+2"]
[EndTime "13:10:03 PDT"]
[Termination "MarshKnight won by resignation"]

1. e4 {[%clk 0:02:59.6]} 1... e6 {[%clk 0:02:59.1]} 2. d4 {[%clk 0:03:00.1]}
2... d5 {[%clk 0:03:00.3]} 3. Nc3 {[%clk 0:03:01.7]} 3... Bb4 {[%clk 0:02:58.5]}
4. e5 {[%clk 0:03:02.4]} 4... c5 {[%clk 0:02:58.7]} 5. a3 {[%clk 0:03:03.9]}
5... Bxc3+ {[%clk 0:02:57.8]} 6. bxc3 {[%clk 0:03:05.8]} 6... Ne7 {[%clk
0:02:58.8]} 7. a4 {[%clk 0:03:06.3]} 7... O-O {[%clk 0:02:58.4]} 8. Nf3 {[%clk
0:03:06.3]} 8... Nbc6 {[%clk 0:02:57.8]} 9. Bd3 {[%clk 0:03:04.1]} 9... f5
{[%clk 0:02:37.2]} 10. exf6 {[%clk 0:03:00]} 10... Rxf6 {[%clk 0:02:37.6]} 11.
Bg5 {[%clk 0:02:55.5]} 11... Rf7 {[%clk 0:02:37.1]} 12. dxc5 {[%clk 0:02:46.3]}
12... h6 {[%clk 0:02:34.7]} 13. Be3 {[%clk 0:02:35.4]} 13... e5 {[%clk 0:02:34]}
14. Bb5 {[%clk 0:02:30.7]} 14... e4 {[%clk 0:02:26.6]} 15. Nd4 {[%clk
0:02:29.2]} 15... Bd7 {[%clk 0:02:26.4]} 16. O-O {[%clk 0:02:22]} 16... a6
{[%clk 0:02:26.9]} 17. Be2 {[%clk 0:01:55.7]} 17... Nf5 {[%clk 0:02:21.1]} 18.
Nxf5 {[%clk 0:01:52.1]} 18... Bxf5 {[%clk 0:02:21.4]} 19. Rb1 {[%clk 0:01:48]}
19... Rd7 {[%clk 0:02:18.5]} 20. Bd4 {[%clk 0:01:45.4]} 20... Qa5 {[%clk
0:02:10.7]} 21. Bg4 {[%clk 0:01:43.5]} 21... Rf8 {[%clk 0:02:04.7]} 22. Bxf5
{[%clk 0:01:43.2]} 22... Rxf5 {[%clk 0:02:05.6]} 23. Qg4 {[%clk 0:01:44.8]}
23... Rff7 {[%clk 0:02:06.5]} 24. Rfd1 {[%clk 0:01:16.2]} 24... Qxa4 {[%clk
0:02:02.1]} 25. Rb3 {[%clk 0:01:07.8]} 25... Na5 {[%clk 0:01:52.2]} 26. Rb6
{[%clk 0:00:49]} 26... Qxc2 {[%clk 0:01:43.4]} 27. Rxh6 {[%clk 0:00:41.1]} 27...
Nc6 {[%clk 0:01:28.5]} 28. Re6 {[%clk 0:00:33.6]} 28... Nxd4 {[%clk 0:01:17.2]}
29. Re8+ {[%clk 0:00:33.5]} 29... Rf8 {[%clk 0:01:16.8]} 30. Rxf8+ {[%clk
0:00:30.6]} 30... Kxf8 {[%clk 0:01:17.7]} 31. cxd4 {[%clk 0:00:31]} 31... Re7
{[%clk 0:00:58.3]} 32. Rf1 {[%clk 0:00:22.7]} 32... Qa4 {[%clk 0:00:50.9]} 33.
Qc8+ {[%clk 0:00:22.7]} 33... Qe8 {[%clk 0:00:43.7]} 34. Qf5+ {[%clk 0:00:23.6]}
34... Qf7 {[%clk 0:00:42.8]} 35. Qc8+ {[%clk 0:00:24.5]} 35... Re8 {[%clk
0:00:44]} 36. Qh3 {[%clk 0:00:21.4]} 36... Kg8 {[%clk 0:00:44.7]} 37. Qe3 {[%clk
0:00:21.6]} 37... a5 {[%clk 0:00:42.2]} 38. h3 {[%clk 0:00:23]} 38... a4 {[%clk
0:00:43.3]} 39. Ra1 {[%clk 0:00:23.9]} 39... Ra8 {[%clk 0:00:43.9]} 40. Qc3
{[%clk 0:00:24.2]} 40... Qd7 {[%clk 0:00:42.4]} 41. Qb4 {[%clk 0:00:25.4]} 41...
Qc6 {[%clk 0:00:43.4]} 42. Ra3 {[%clk 0:00:25.9]} 42... Ra6 {[%clk 0:00:44.2]}
43. h4 {[%clk 0:00:24.9]} 43... Kh8 {[%clk 0:00:38.2]} 44. Qd2 {[%clk
0:00:25.4]} 44... Qh6 {[%clk 0:00:37.7]} 45. Qb2 {[%clk 0:00:25.5]} 45... Kh7
{[%clk 0:00:35]} 46. Qxb7 {[%clk 0:00:26.1]} 46... Qc1+ {[%clk 0:00:33.9]} 47.
Kh2 {[%clk 0:00:25.9]} 47... Qxa3 {[%clk 0:00:35.2]} 48. Qxa6 {[%clk 0:00:26.8]}
48... Qb4 {[%clk 0:00:32.1]} 49. h5 {[%clk 0:00:25.2]} 49... Qb8+ {[%clk
0:00:24.1]} 50. Qd6 {[%clk 0:00:24.9]} 50... Qe8 {[%clk 0:00:22.5]} 51. c6
{[%clk 0:00:25.4]} 51... Qxh5+ {[%clk 0:00:19.8]} 52. Kg1 {[%clk 0:00:26.4]}
52... Qd1+ {[%clk 0:00:20.4]} 53. Kh2 {[%clk 0:00:27]} 53... Qh5+ {[%clk
0:00:21.3]} 54. Kg3 {[%clk 0:00:27.5]} 54... a3 {[%clk 0:00:19.2]} 55. c7 {[%clk
0:00:28.1]} 55... Qg5+ {[%clk 0:00:19.8]} 56. Kh2 {[%clk 0:00:28.2]} 56... Qh5+
{[%clk 0:00:20.7]} 57. Kg3 {[%clk 0:00:28.2]} 57... Qg5+ {[%clk 0:00:21.8]} 58.
Kh2 {[%clk 0:00:28.8]} 58... a2 {[%clk 0:00:22.7]} 59. c8=Q {[%clk 0:00:29.5]}
59... Qh5+ {[%clk 0:00:24]} 60. Qh3 {[%clk 0:00:29.9]} 60... Qxh3+ {[%clk
0:00:24.4]} 61. Kxh3 {[%clk 0:00:31]} 61... a1=Q {[%clk 0:00:26.1]} 62. Qxd5
{[%clk 0:00:32.3]} 62... Qh1+ {[%clk 0:00:27]} 63. Kg3 {[%clk 0:00:33.9]} 63...
Qb1 {[%clk 0:00:26.9]} 64. Kf4 {[%clk 0:00:33.7]} 64... Qf1 {[%clk 0:00:19.4]}
65. Qxe4+ {[%clk 0:00:34.2]} 65... Kh6 {[%clk 0:00:20.2]} 66. Qe6+ {[%clk
0:00:34.6]} 66... Kh7 {[%clk 0:00:21.5]} 67. Qh3+ {[%clk 0:00:35.5]} 67... Kg8
{[%clk 0:00:22.7]} 68. Qf3 {[%clk 0:00:36.3]} 68... Qc1+ {[%clk 0:00:23]} 69.
Kg4 {[%clk 0:00:37.3]} 69... Qc3 {[%clk 0:00:22.8]} 70. Qxc3 {[%clk 0:00:37.7]}
1-0

[Event "*** Titled Tuesday Blitz"]
[Site "Chess.com"]
[Date "2018.08.07"]
[Round "1"]
[White "Laico"]
[Black "murmah2003"]
[Result "1-0"]
[WhiteElo "2258"]
[BlackElo "2577"]
[TimeControl "180+2"]
[EndTime "13:10:15 PDT"]
[Termination "Laico won by checkmate"]

1. e4 {[%clk 0:03:00.6]} 1... d6 {[%clk 0:02:58.4]} 2. d4 {[%clk 0:03:00.5]}
2... e5 {[%clk 0:02:58.7]} 3. Nf3 {[%clk 0:02:50.5]} 3... exd4 {[%clk
0:02:57.2]} 4. Nxd4 {[%clk 0:02:51]} 4... Nf6 {[%clk 0:02:57.5]} 5. Nc3 {[%clk
0:02:51.4]} 5... Be7 {[%clk 0:02:58.8]} 6. Be3 {[%clk 0:02:37.5]} 6... O-O
{[%clk 0:02:57]} 7. Qd2 {[%clk 0:02:37.8]} 7... a6 {[%clk 0:02:29]} 8. f3 {[%clk
0:02:27.7]} 8... c5 {[%clk 0:02:23.3]} 9. Nf5 {[%clk 0:02:06.8]} 9... Bxf5
{[%clk 0:02:18.2]} 10. exf5 {[%clk 0:02:08.7]} 10... d5 {[%clk 0:02:19.7]} 11.
Bg5 {[%clk 0:02:03.3]} 11... d4 {[%clk 0:02:12.3]} 12. Bxf6 {[%clk 0:02:04]}
12... Bxf6 {[%clk 0:02:10.7]} 13. Ne4 {[%clk 0:02:03.9]} 13... Nc6 {[%clk
0:02:10.3]} 14. O-O-O {[%clk 0:02:00.4]} 14... Re8 {[%clk 0:02:08.3]} 15. g4
{[%clk 0:02:00.8]} 15... Rxe4 {[%clk 0:02:08.7]} 16. Kb1 {[%clk 0:01:37.2]}
16... Re6 {[%clk 0:02:08]} 17. fxe6 {[%clk 0:01:35.3]} 17... fxe6 {[%clk
0:02:05.4]} 18. Bc4 {[%clk 0:01:32.9]} 18... Qd6 {[%clk 0:02:02.8]} 19. Rde1
{[%clk 0:01:26.8]} 19... Re8 {[%clk 0:02:02.4]} 20. f4 {[%clk 0:01:22.1]} 20...
b5 {[%clk 0:01:52.5]} 21. Bf1 {[%clk 0:01:17.7]} 21... Bd8 {[%clk 0:01:39.4]}
22. Bg2 {[%clk 0:01:11.8]} 22... Ba5 {[%clk 0:01:03.6]} 23. c3 {[%clk
0:01:03.8]} 23... Ne7 {[%clk 0:01:01.5]} 24. Qd3 {[%clk 0:00:51]} 24... Ng6
{[%clk 0:00:49.9]} 25. Rd1 {[%clk 0:00:24.3]} 25... Nxf4 {[%clk 0:00:47.2]} 26.
Qe4 {[%clk 0:00:25.4]} 26... Nxg2 {[%clk 0:00:39.7]} 27. Qxg2 {[%clk 0:00:25.6]}
27... d3 {[%clk 0:00:41]} 28. Rhe1 {[%clk 0:00:20.1]} 28... c4 {[%clk
0:00:40.4]} 29. Re4 {[%clk 0:00:21]} 29... e5 {[%clk 0:00:35.1]} 30. g5 {[%clk
0:00:21.6]} 30... Bb6 {[%clk 0:00:31.6]} 31. h4 {[%clk 0:00:21.6]} 31... Rf8
{[%clk 0:00:31.4]} 32. Qg3 {[%clk 0:00:22]} 32... Bc7 {[%clk 0:00:24.2]} 33. h5
{[%clk 0:00:22.7]} 33... Qd5 {[%clk 0:00:23.7]} 34. Qe3 {[%clk 0:00:20.5]} 34...
Qc6 {[%clk 0:00:06.4]} 35. a4 {[%clk 0:00:18.6]} 35... Qd5 {[%clk 0:00:06.6]}
36. Rg4 {[%clk 0:00:16.1]} 36... Qe6 {[%clk 0:00:07]} 37. Rg2 {[%clk 0:00:13.9]}
37... Qf5 {[%clk 0:00:06.8]} 38. Re1 {[%clk 0:00:14]} 38... d2+ {[%clk
0:00:07.2]} 39. Ka2 {[%clk 0:00:11.3]} 39... dxe1=Q {[%clk 0:00:08]} 40. Qxe1
{[%clk 0:00:13.2]} 40... bxa4 {[%clk 0:00:08.8]} 41. Qe2 {[%clk 0:00:11.2]}
41... Qd3 {[%clk 0:00:09.8]} 42. Qg4 {[%clk 0:00:10.9]} 42... Qd5 {[%clk
0:00:09.1]} 43. Rg1 {[%clk 0:00:08.2]} 43... Bb6 {[%clk 0:00:08.5]} 44. Rd1
{[%clk 0:00:08.8]} 44... Qc6 {[%clk 0:00:07.9]} 45. Rd7 {[%clk 0:00:05.6]} 45...
Rf4 {[%clk 0:00:05.8]} 46. Qh3 {[%clk 0:00:05.3]} 46... Rf3 {[%clk 0:00:05.3]}
47. Qg4 {[%clk 0:00:05.4]} 47... Rf4 {[%clk 0:00:06.5]} 48. Qh3 {[%clk
0:00:06.2]} 48... Qf3 {[%clk 0:00:08]} 49. Qe6+ {[%clk 0:00:05.1]} 49... Kh8
{[%clk 0:00:05.8]} 50. Qxb6 {[%clk 0:00:04.3]} 50... Rf8 {[%clk 0:00:03.5]} 51.
h6 {[%clk 0:00:03]} 51... gxh6 {[%clk 0:00:03.2]} 52. Qxh6 {[%clk 0:00:02.6]}
52... Qf5 {[%clk 0:00:04]} 53. Qg7# {[%clk 0:00:03.6]} 1-0

[Event "*** Titled Tuesday Blitz"]
[Site "Chess.com"]
[Date "2018.08.07"]
[Round "1"]
[White "nailbeshirli"]
[Black "ZoltanChef"]
[Result "1-0"]
[WhiteElo "2521"]
[BlackElo "2205"]
[TimeControl "180+2"]
[EndTime "13:10:53 PDT"]
[Termination "nailbeshirli won by resignation"]

1. e4 {[%clk 0:03:01.6]} 1... c5 {[%clk 0:02:59.2]} 2. Nf3 {[%clk 0:03:02.8]}
2... d6 {[%clk 0:03:00.6]} 3. Nc3 {[%clk 0:03:02.4]} 3... Nf6 {[%clk 0:03:01.2]}
4. e5 {[%clk 0:03:02.2]} 4... dxe5 {[%clk 0:03:01.6]} 5. Nxe5 {[%clk 0:03:04.1]}
5... Nfd7 {[%clk 0:03:00.5]} 6. Nc4 {[%clk 0:02:37.8]} 6... Nc6 {[%clk
0:02:52.5]} 7. g3 {[%clk 0:02:36.9]} 7... e6 {[%clk 0:02:51.6]} 8. Bg2 {[%clk
0:02:37.5]} 8... Be7 {[%clk 0:02:52.5]} 9. O-O {[%clk 0:02:38.3]} 9... O-O
{[%clk 0:02:53.1]} 10. d3 {[%clk 0:02:36.7]} 10... Nb6 {[%clk 0:02:50.5]} 11.
Nxb6 {[%clk 0:02:35]} 11... Qxb6 {[%clk 0:02:49.9]} 12. Be3 {[%clk 0:02:28.2]}
12... Qxb2 {[%clk 0:02:45.5]} 13. Qd2 {[%clk 0:02:29.5]} 13... Nd4 {[%clk
0:02:42]} 14. Rfc1 {[%clk 0:02:22.3]} 14... Nf5 {[%clk 0:02:25.1]} 15. Rab1
{[%clk 0:02:21.7]} 15... Qa3 {[%clk 0:02:25.4]} 16. Bf4 {[%clk 0:02:21.6]} 16...
Qa6 {[%clk 0:02:20.9]} 17. Nb5 {[%clk 0:02:21.8]} 17... Bd8 {[%clk 0:02:16.8]}
18. Qc3 {[%clk 0:01:47.7]} 18... Nd4 {[%clk 0:01:59.5]} 19. Nxd4 {[%clk
0:01:48.2]} 19... cxd4 {[%clk 0:01:53.4]} 20. Qxd4 {[%clk 0:01:50.1]} 20... Bb6
{[%clk 0:01:45.6]} 21. Qb2 {[%clk 0:01:37]} 21... Bd7 {[%clk 0:01:45]} 22. c4
{[%clk 0:01:33.9]} 22... Bc6 {[%clk 0:01:44.9]} 23. Bxc6 {[%clk 0:01:30.6]}
23... bxc6 {[%clk 0:01:45.4]} 24. Be5 {[%clk 0:01:29.1]} 24... f6 {[%clk
0:01:45.8]} 25. Bd6 {[%clk 0:01:30.6]} 25... Rfe8 {[%clk 0:01:43.4]} 26. c5
{[%clk 0:01:24.4]} 26... Bd8 {[%clk 0:01:35.6]} 27. Qb7 {[%clk 0:01:24.9]} 27...
Qxb7 {[%clk 0:01:32.7]} 28. Rxb7 {[%clk 0:01:26.8]} 28... Ba5 {[%clk 0:01:26.9]}
29. Rcb1 {[%clk 0:01:26.8]} 29... Bc3 {[%clk 0:01:27]} 30. Rc7 {[%clk
0:01:25.5]} 30... Rec8 {[%clk 0:01:26.7]} 31. Re7 {[%clk 0:01:24.6]} 31... Re8
{[%clk 0:01:27.4]} 32. Rc7 {[%clk 0:01:22.2]} 32... Rec8 {[%clk 0:01:28.2]} 33.
Rbb7 {[%clk 0:01:24.1]} 33... Rxc7 {[%clk 0:01:25.9]} 34. Rxc7 {[%clk 0:01:26]}
34... Rb8 {[%clk 0:01:19.9]} 35. Rxc6 {[%clk 0:01:26.4]} 35... Rb2 {[%clk
0:01:19.1]} 36. Rc8+ {[%clk 0:01:11.9]} 36... Kf7 {[%clk 0:01:19.5]} 37. Rf8+
{[%clk 0:01:13.8]} 37... Kg6 {[%clk 0:01:20.2]} 38. c6 {[%clk 0:01:15.7]} 38...
Ba5 {[%clk 0:00:45.8]} 39. c7 {[%clk 0:01:15.2]} 39... Bxc7 {[%clk 0:00:44.6]}
40. Bxc7 {[%clk 0:01:17.1]} 40... Rxa2 {[%clk 0:00:46.1]} 41. Ra8 {[%clk
0:01:16.2]} 41... e5 {[%clk 0:00:45.4]} 42. Bd6 {[%clk 0:01:14.2]} 42... a5
{[%clk 0:00:43.6]} 43. Kg2 {[%clk 0:01:11.6]} 43... Rd2 {[%clk 0:00:40.3]} 44.
Bf8 {[%clk 0:01:10.4]} 44... Kf7 {[%clk 0:00:40.1]} 45. Ba3 {[%clk 0:01:08.1]}
45... Rxd3 {[%clk 0:00:40.4]} 46. Rxa5 {[%clk 0:01:09.3]} 46... Rd7 {[%clk
0:00:40.7]} 47. Bc1 {[%clk 0:01:09.4]} 47... Kg6 {[%clk 0:00:39.6]} 48. Be3
{[%clk 0:01:11.3]} 48... Kf5 {[%clk 0:00:40]} 49. h3 {[%clk 0:01:13.2]} 49... h5
{[%clk 0:00:40]} 50. Kf3 {[%clk 0:01:14]} 50... Rb7 {[%clk 0:00:39.1]} 51. Ra8
{[%clk 0:01:13.8]} 51... Rd7 {[%clk 0:00:39.7]} 52. Rh8 {[%clk 0:01:14.4]} 52...
Kg6 {[%clk 0:00:39.8]} 53. Ke4 {[%clk 0:01:13.5]} 53... Rb7 {[%clk 0:00:37]} 54.
Kf3 {[%clk 0:01:12.2]} 54... Rd7 {[%clk 0:00:37.5]} 55. g4 {[%clk 0:01:13]}
55... hxg4+ {[%clk 0:00:38.1]} 56. hxg4 {[%clk 0:01:12.3]} 56... Rb7 {[%clk
0:00:37.8]} 57. Rd8 {[%clk 0:01:12.6]} 57... Rc7 {[%clk 0:00:36.6]} 58. Rd5
{[%clk 0:01:13.4]} 58... Rb7 {[%clk 0:00:27.8]} 59. Rc5 {[%clk 0:01:14.4]} 59...
Rd7 {[%clk 0:00:28.3]} 60. Rc6 {[%clk 0:01:15]} 60... Rb7 {[%clk 0:00:27.3]} 61.
Rc4 {[%clk 0:01:16.2]} 61... Rd7 {[%clk 0:00:28.2]} 62. Ke4 {[%clk 0:01:18.1]}
62... Rb7 {[%clk 0:00:26.6]} 63. Bc5 {[%clk 0:01:19.2]} 63... Rc7 {[%clk
0:00:27.1]} 64. Kd5 {[%clk 0:01:20]} 64... Rc8 {[%clk 0:00:21]} 65. Be3 {[%clk
0:01:15.8]} 65... Rd8+ {[%clk 0:00:17.3]} 66. Ke6 {[%clk 0:01:17.2]} 66... Re8+
{[%clk 0:00:17.1]} 67. Kd7 {[%clk 0:01:18.7]} 67... Rb8 {[%clk 0:00:17.8]} 68.
Rc7 {[%clk 0:01:16.4]} 68... Rb4 {[%clk 0:00:18.2]} 69. Ke7 {[%clk 0:01:05.7]}
69... Rxg4 {[%clk 0:00:17.8]} 70. Kf8 {[%clk 0:01:07.6]} 70... Kh5 {[%clk
0:00:13.7]} 71. Rxg7 {[%clk 0:01:05.3]} 71... Rxg7 {[%clk 0:00:14]} 72. Kxg7
{[%clk 0:01:07.1]} 72... f5 {[%clk 0:00:15.9]} 73. Kf6 {[%clk 0:01:09]} 73... f4
{[%clk 0:00:17.2]} 74. Kxe5 {[%clk 0:01:09.2]} 74... fxe3 {[%clk 0:00:17.8]} 75.
fxe3 {[%clk 0:01:11.1]} 75... Kg6 {[%clk 0:00:19.1]} 76. Ke6 {[%clk 0:01:11.3]}
76... Kg7 {[%clk 0:00:19.6]} 77. e4 {[%clk 0:01:11.8]} 77... Kf8 {[%clk
0:00:21]} 78. Kd7 {[%clk 0:01:13.3]} 78... Kf7 {[%clk 0:00:22.1]} 79. e5 {[%clk
0:01:15.2]} 79... Kg6 {[%clk 0:00:22.7]} 80. e6 {[%clk 0:01:17.1]} 80... Kf5
{[%clk 0:00:24.2]} 81. e7 {[%clk 0:01:19]} 1-0

[Event "*** Titled Tuesday Blitz"]
[Site "Chess.com"]
[Date "2018.08.07"]
[Round "1"]
[White "Morshynska"]
[Black "Abrito99"]
[Result "0-1"]
[WhiteElo "2137"]
[BlackElo "2492"]
[TimeControl "180+2"]
[EndTime "13:11:45 PDT"]
[Termination "Abrito99 won by resignation"]

1. d4 {[%clk 0:03:00.3]} 1... Nf6 {[%clk 0:02:59.8]} 2. c4 {[%clk 0:02:59.7]}
2... g6 {[%clk 0:02:59.4]} 3. d5 {[%clk 0:02:45.9]} 3... Bg7 {[%clk 0:02:53.3]}
4. Nc3 {[%clk 0:02:42.8]} 4... O-O {[%clk 0:02:53.9]} 5. e4 {[%clk 0:02:42.8]}
5... d6 {[%clk 0:02:55.4]} 6. Bd3 {[%clk 0:02:42.8]} 6... e6 {[%clk 0:02:48.4]}
7. Nge2 {[%clk 0:02:35.9]} 7... Re8 {[%clk 0:02:40.2]} 8. O-O {[%clk 0:02:33.2]}
8... exd5 {[%clk 0:02:40.1]} 9. cxd5 {[%clk 0:02:35.1]} 9... Nbd7 {[%clk
0:02:40.6]} 10. f3 {[%clk 0:02:31.1]} 10... c6 {[%clk 0:02:38.5]} 11. dxc6
{[%clk 0:02:31.1]} 11... Qb6+ {[%clk 0:02:36.9]} 12. Kh1 {[%clk 0:02:30.5]}
12... bxc6 {[%clk 0:02:38.4]} 13. Na4 {[%clk 0:02:12.6]} 13... Qc7 {[%clk
0:02:39.2]} 14. Be3 {[%clk 0:02:09.5]} 14... d5 {[%clk 0:02:36.6]} 15. Bf4
{[%clk 0:01:54.3]} 15... Qa5 {[%clk 0:02:37.4]} 16. Bd2 {[%clk 0:01:45.3]} 16...
Qd8 {[%clk 0:02:37.6]} 17. exd5 {[%clk 0:01:27.9]} 17... Ne5 {[%clk 0:02:35.6]}
18. Bc3 {[%clk 0:01:12.2]} 18... Nxd5 {[%clk 0:02:22.4]} 19. Be4 {[%clk
0:00:55.9]} 19... Ba6 {[%clk 0:01:44]} 20. Re1 {[%clk 0:00:47.8]} 20... Qh4
{[%clk 0:01:28.7]} 21. Bxd5 {[%clk 0:00:31.8]} 21... cxd5 {[%clk 0:01:30.6]} 22.
Qd4 {[%clk 0:00:20.3]} 22... Qd8 {[%clk 0:01:06.7]} 23. Ng3 {[%clk 0:00:16.7]}
23... Rc8 {[%clk 0:00:59]} 24. Nc5 {[%clk 0:00:13.2]} 24... Qb6 {[%clk
0:00:43.5]} 25. Nxa6 {[%clk 0:00:13.2]} 25... Qxa6 {[%clk 0:00:39.9]} 26. f4
{[%clk 0:00:12.5]} 26... Rc4 {[%clk 0:00:36.7]} 27. Qxd5 {[%clk 0:00:13]} 27...
Rxf4 {[%clk 0:00:21.1]} 28. Bxe5 {[%clk 0:00:12.1]} 28... Bxe5 {[%clk 0:00:19]}
29. Rxe5 {[%clk 0:00:14]} 29... Rc8 {[%clk 0:00:20.5]} 30. Rae1 {[%clk
0:00:13.7]} 30... Qf6 {[%clk 0:00:21.8]} 31. Re8+ {[%clk 0:00:13.9]} 31... Rxe8
{[%clk 0:00:23.4]} 32. Rxe8+ {[%clk 0:00:15.8]} 32... Kg7 {[%clk 0:00:25.2]} 33.
Qe5 {[%clk 0:00:16]} 33... Qxe5 {[%clk 0:00:25.4]} 34. Rxe5 {[%clk 0:00:17.9]}
34... Rd4 {[%clk 0:00:27.3]} 35. Re1 {[%clk 0:00:17.8]} 35... Rd2 {[%clk
0:00:28.8]} 36. Rb1 {[%clk 0:00:19.3]} 36... f5 {[%clk 0:00:29.5]} 37. Kg1
{[%clk 0:00:20.6]} 37... Kf6 {[%clk 0:00:30.1]} 38. Kf1 {[%clk 0:00:21.8]} 38...
Ke5 {[%clk 0:00:31.7]} 39. Ne2 {[%clk 0:00:21.5]} 39... Ke4 {[%clk 0:00:32.7]}
40. Ke1 {[%clk 0:00:21.5]} 40... Rc2 {[%clk 0:00:32.1]} 41. a3 {[%clk
0:00:21.8]} 41... Ke3 {[%clk 0:00:32.2]} 42. Nc3 {[%clk 0:00:21.6]} 42... Rxg2
{[%clk 0:00:33.2]} 43. Kd1 {[%clk 0:00:19.4]} 43... Kd3 {[%clk 0:00:31.7]} 44.
Ke1 {[%clk 0:00:18.8]} 44... Rxh2 {[%clk 0:00:26.5]} 45. Rd1+ {[%clk 0:00:19.4]}
45... Kc2 {[%clk 0:00:27.1]} 46. Rd7 {[%clk 0:00:18.8]} 46... Kxb2 {[%clk
0:00:23.8]} 47. Nb5 {[%clk 0:00:19.4]} 47... a6 {[%clk 0:00:23.1]} 48. Nc7
{[%clk 0:00:17.7]} 48... a5 {[%clk 0:00:19.9]} 49. a4 {[%clk 0:00:18.6]} 49...
Kb3 {[%clk 0:00:20.5]} 50. Rd4 {[%clk 0:00:18.7]} 50... Ra2 {[%clk 0:00:20.3]}
51. Nb5 {[%clk 0:00:16.2]} 51... Rxa4 {[%clk 0:00:20.6]} 52. Rd7 {[%clk
0:00:18.1]} 52... Rh4 {[%clk 0:00:20.7]} 53. Nd4+ {[%clk 0:00:17.9]} 53... Kc4
{[%clk 0:00:21]} 54. Nf3 {[%clk 0:00:18.6]} 54... Rh3 {[%clk 0:00:21.5]} 55. Kf2
{[%clk 0:00:18.6]} 55... a4 {[%clk 0:00:22.9]} 56. Ra7 {[%clk 0:00:18.2]} 56...
Kb4 {[%clk 0:00:22.7]} 57. Rb7+ {[%clk 0:00:19.4]} 57... Ka3 {[%clk 0:00:23]}
58. Kg2 {[%clk 0:00:19.5]} 58... Rh5 {[%clk 0:00:24.5]} 59. Rb5 {[%clk
0:00:19.2]} 59... f4 {[%clk 0:00:24.2]} 60. Rb7 {[%clk 0:00:16.7]} 60... Ka2
{[%clk 0:00:21.4]} 61. Nd2 {[%clk 0:00:15.6]} 61... Rd5 {[%clk 0:00:22]} 62. Nc4
{[%clk 0:00:16]} 62... h6 {[%clk 0:00:18.2]} 63. Rb2+ {[%clk 0:00:15.6]} 63...
Ka1 {[%clk 0:00:19.8]} 64. Rc2 {[%clk 0:00:14.7]} 64... Rd4 {[%clk 0:00:19.1]}
65. Rc3 {[%clk 0:00:13.6]} 65... g5 {[%clk 0:00:20.1]} 66. Kf3 {[%clk
0:00:14.2]} 66... h5 {[%clk 0:00:21.2]} 67. Nb6 {[%clk 0:00:14.3]} 67... Kb2
{[%clk 0:00:21.4]} 68. Rc5 {[%clk 0:00:11.7]} 68... g4+ {[%clk 0:00:22.9]} 69.
Kg2 {[%clk 0:00:12.4]} 69... f3+ {[%clk 0:00:23.4]} 70. Kg3 {[%clk 0:00:13]}
70... a3 {[%clk 0:00:23.4]} 71. Nc4+ {[%clk 0:00:12.7]} 71... Rxc4 {[%clk
0:00:17.1]} 72. Rxc4 {[%clk 0:00:14.6]} 72... a2 {[%clk 0:00:18.7]} 73. Ra4
{[%clk 0:00:10.8]} 73... a1=Q {[%clk 0:00:19.6]} 0-1